bitfinex/quotes_SOLUSD_20230401
["timestamp","ask_amount","ask_price","bid_price","bid_amount"]
[1680387365643,113.064,21.131,21.115,10.0]
[1680387366146,113.064,21.131,21.117,10.0]
[1680387366340,113.064,21.131,21.119,10.0]
[1680387366530,113.064,21.131,21.121,10.0]
[1680387380749,113.064,21.131,21.119,10.0]
[1680387380950,113.064,21.131,21.121,10.0]
[1680387385755,10.0,21.13,21.121,10.0]
[1680387386954,36.65,21.13,21.121,10.0]
[1680387387356,10.0,21.13,21.121,10.0]
[1680387387655,31.35,21.13,21.121,10.0]
[1680387400362,31.35,21.13,21.122,17.0]
[1680387404869,31.35,21.13,21.121,10.0]
[1680387425878,10.0,21.13,21.123,10.0]
[1680387426079,10.0,21.13,21.124,17.0]
[1680387430802,10.0,21.135,21.124,17.0]
[1680387438321,10.0,21.135,21.125,10.0]
[1680387438604,10.0,21.135,21.127,10.0]
[1680387438805,10.0,21.135,21.128,17.0]
[1680387460905,10.0,21.139,21.128,17.0]
[1680387463114,9.5,21.139,21.129,10.0]
[1680387463314,9.5,21.139,21.13,17.0]
[1680387482134,21.19,21.15,21.131,10.0]
[1680387482335,267.3632379,21.164,21.14,21.23]
[1680387482336,10.0,21.159,21.14,21.23]
[1680387482547,18.934327,21.149,21.142,10.0]
[1680387482926,18.934327,21.149,21.144,10.0]
[1680387483430,18.934327,21.149,21.141,10.0]
[1680387484338,118.5703,21.163,21.141,10.0]
[1680387484339,10.0,21.163,21.143,10.0]
[1680387484640,10.0,21.163,21.145,10.0]
[1680387484822,139.9203,21.17,21.147,10.0]
[1680387485029,10.0,21.169,21.148,17.0]
[1680387485227,10.0,21.169,21.149,10.0]
[1680387485428,10.0,21.169,21.151,10.0]
[1680387485943,10.0,21.169,21.152,17.0]
[1680387486535,10.0,21.169,21.151,10.0]
[1680387486737,10.0,21.169,21.152,17.0]
[1680387487039,10.0,21.169,21.153,10.0]
[1680387487248,10.0,21.169,21.154,17.0]
[1680387487939,10.0,21.167,21.154,17.0]
[1680387488431,10.0,21.165,21.154,17.0]
[1680387489849,10.0,21.165,21.151,10.0]
[1680387490051,10.0,21.165,21.152,17.0]
[1680387494159,20.0,21.166,21.153,10.0]
[1680387494454,10.0,21.167,21.155,10.0]
[1680387494657,10.0,21.167,21.156,17.0]
[1680387494959,20.0,21.166,21.156,17.0]
[1680387496159,20.0,21.166,21.154,17.0]
[1680387497356,20.0,21.166,21.153,10.0]
[1680387497543,10.0,21.167,21.153,10.0]
[1680387497741,20.0,21.166,21.153,10.0]
[1680387497935,10.0,21.167,21.155,10.0]
[1680387498132,10.0,21.169,21.155,10.0]
[1680387498646,10.0,21.169,21.157,10.0]
[1680387500059,10.0,21.169,21.158,17.0]
[1680387500638,10.0,21.169,21.155,10.0]
[1680387500945,10.0,21.167,21.155,10.0]
[1680387501146,20.0,21.166,21.155,10.0]
[1680387502255,20.0,21.166,21.154,10.0]
[1680387503762,20.0,21.166,21.155,17.0]
[1680387503935,33.622,21.167,21.155,17.0]
[1680387504260,10.0,21.167,21.155,17.0]
[1680387505863,10.0,21.167,21.155,5.16792087]
[1680387506164,10.0,21.167,21.154,10.0]
[1680387506343,10.0,21.167,21.155,20.0]
[1680387507042,10.0,21.167,21.156,10.0]
[1680387507866,10.0,21.169,21.157,17.0]
[1680387508342,10.0,21.17,21.158,10.0]
[1680387508542,10.0,21.17,21.159,17.0]
[1680387510438,10.0,21.17,21.157,17.0]
[1680387511843,10.0,21.17,21.156,10.0]
[1680387513470,10.0,21.17,21.157,17.0]
[1680387516560,108.929,21.175,21.158,10.0]
[1680387516869,108.929,21.175,21.16,10.0]
[1680387517058,108.929,21.175,21.161,17.0]
[1680387517754,10.0,21.179,21.161,17.0]
[1680387518967,10.0,21.175,21.158,10.0]
[1680387519160,125.9977,21.175,21.158,10.0]
[1680387520859,125.9977,21.175,21.159,17.0]
[1680387526679,125.9977,21.175,21.16,10.0]
[1680387526862,125.9977,21.175,21.161,17.0]
[1680387527173,125.9977,21.175,21.156,10.0]
[1680387527376,10.0,21.169,21.157,17.0]
[1680387527581,10.0,21.169,21.155,20.0]
[1680387528979,10.0,21.169,21.157,10.0]
[1680387529170,10.0,21.169,21.158,17.0]
[1680387530281,10.0,21.169,21.157,17.0]
[1680387533279,10.0,21.167,21.147,10.0]
[1680387533463,10.0,21.165,21.147,10.0]
[1680387533664,112.898,21.164,21.147,10.0]
[1680387533880,10.0,21.163,21.147,10.0]
[1680387535678,10.0,21.159,21.147,10.0]
[1680387536064,26.51,21.16,21.147,10.0]
[1680387536777,26.51,21.16,21.148,17.0]
[1680387536984,26.51,21.16,21.149,10.0]
[1680387537183,26.51,21.16,21.15,17.0]
[1680387550391,112.898,21.164,21.15,17.0]
[1680387552389,112.898,21.164,21.151,10.0]
[1680387552577,112.898,21.164,21.153,10.0]
[1680387552887,112.898,21.164,21.154,17.0]
[1680387564105,112.898,21.164,21.154,17.0]
[1680387570981,26.59,21.17,21.156,10.0]
[1680387571181,26.59,21.17,21.158,10.0]
[1680387571384,26.59,21.17,21.159,17.0]
[1680387581518,26.59,21.17,21.157,17.0]
[1680387592412,21.21,21.17,21.157,17.0]
[1680387592625,10.0,21.169,21.157,17.0]
[1680387597033,21.21,21.17,21.157,17.0]
[1680387603730,115.9977,21.175,21.158,10.0]
[1680387603932,115.9977,21.175,21.159,17.0]
[1680387604131,115.9977,21.175,21.16,10.0]
[1680387604331,115.9977,21.175,21.162,10.0]
[1680387604529,115.9977,21.175,21.164,10.0]
[1680387604929,115.9977,21.175,21.165,17.0]
[1680387608429,10.0,21.179,21.165,17.0]
[1680387608635,9.5,21.179,21.166,10.0]
[1680387608933,9.5,21.179,21.167,17.0]
[1680387609538,9.5,21.179,21.166,10.0]
[1680387609938,531.21,21.18,21.168,10.0]
[1680387610137,531.21,21.18,21.169,17.0]
[1680387610339,10.0,21.179,21.169,17.0]
[1680387610647,10.0,21.179,21.167,17.0]
[1680387621852,17.0,21.178,21.16,10.0]
[1680387622052,17.0,21.178,21.158,10.0]
[1680387622053,21.21,21.17,21.158,10.0]
[1680387622538,17.10774092,21.169,21.158,10.0]
[1680387622943,7.10774092,21.168,21.158,10.0]
[1680387624042,7.10774092,21.168,21.155,10.0]
[1680387625849,10.0,21.167,21.155,10.0]
[1680387629046,10.0,21.167,21.154,10.0]
[1680387629251,10.0,21.165,21.15,10.0]
[1680387629453,10.0,21.165,21.152,10.0]
[1680387629653,7.10774092,21.164,21.153,17.0]
[1680387632256,10.0,21.167,21.153,17.0]
[1680387632257,10.0,21.167,21.154,10.0]
[1680387632466,20.0,21.166,21.155,17.0]
[1680387636456,10.0,21.167,21.155,17.0]
[1680387636656,20.0,21.166,21.156,10.0]
[1680387636860,20.0,21.166,21.157,17.0]
[1680387639174,20.0,21.166,21.156,10.0]
[1680387639362,20.0,21.166,21.157,17.0]
[1680387640268,26.52,21.17,21.157,17.0]
[1680387640579,26.52,21.17,21.158,10.0]
[1680387640873,26.52,21.17,21.16,10.0]
[1680387641056,26.52,21.17,21.161,17.0]
[1680387646677,17.10774092,21.174,21.161,17.0]
[1680387652488,125.71174092,21.173,21.161,17.0]
[1680387681010,118.604,21.173,21.161,17.0]
[1680387681307,125.71174092,21.173,21.161,17.0]
[1680387692614,21.11,21.17,21.161,17.0]
[1680387716629,21.11,21.17,21.16,10.0]
[1680387716929,21.11,21.17,21.162,10.0]
[1680387717125,21.11,21.17,21.163,17.0]
[1680387727044,118.604,21.173,21.163,17.0]
[1680387729325,118.604,21.173,21.16,10.0]
[1680387729326,118.604,21.173,21.161,17.0]
[1680387737050,21.11,21.17,21.161,17.0]
[1680387745954,11.81418647,21.169,21.161,17.0]
[1680387756770,11.81418647,21.169,21.162,10.0]
[1680387756957,11.81418647,21.169,21.163,37.0]
[1680387757156,11.81418647,21.169,21.164,10.0]
[1680387757358,11.81418647,21.169,21.165,17.0]
[1680387757854,11.81418647,21.174,21.165,17.0]
[1680387760457,11.81418647,21.174,21.166,10.0]
[1680387760656,11.81418647,21.174,21.167,17.0]
[1680387764071,11.81418647,21.178,21.167,17.0]
[1680387774479,11.81418647,21.178,21.168,10.0]
[1680387774783,11.81418647,21.178,21.17,10.0]
[1680387774982,11.81418647,21.178,21.171,17.0]
[1680387775778,11.81418647,21.178,21.17,10.0]
[1680387775968,11.81418647,21.178,21.171,17.0]
[1680387776784,11.81418647,21.178,21.172,17.0]
[1680387777384,11.81418647,21.178,21.171,17.0]
[1680387782079,11.81418647,21.178,21.17,10.0]
[1680387782280,11.81418647,21.178,21.171,17.0]
[1680387786500,11.81418647,21.178,21.172,10.0]
[1680387786800,11.70410897,21.178,21.174,10.0]
[1680387787093,11.70410897,21.178,21.175,17.0]
[1680387789396,11.70410897,21.178,21.176,10.0]
[1680387789601,11.70410897,21.178,21.177,17.0]
[1680387794198,11.70410897,21.178,21.176,10.0]
[1680387794398,11.70410897,21.178,21.177,17.0]
[1680387795500,11.70410897,21.178,21.174,10.0]
[1680387795687,11.70410897,21.178,21.175,20.0]
[1680387796897,11.70410897,21.178,21.176,17.0]
[1680387803904,11.70410897,21.178,21.172,10.0]
[1680387805710,11.70410897,21.178,21.173,17.0]
[1680387808204,11.70410897,21.178,21.173,17.0]
[1680387812117,11.70410897,21.178,21.172,10.0]
[1680387812298,11.70410897,21.178,21.173,17.0]
[1680387821527,11.70410897,21.178,21.173,14.5]
[1680387822012,11.70410897,21.178,21.171,10.0]
[1680387823828,11.70410897,21.178,21.172,17.0]
[1680387824031,11.70410897,21.178,21.169,10.0]
[1680387824228,11.70410897,21.178,21.17,17.0]
[1680387843735,11.70410897,21.178,21.17,16.90584025]
[1680387859128,11.70410897,21.178,21.164,10.0]
[1680387859340,10.0,21.177,21.164,10.0]
[1680387859537,21.24,21.17,21.159,18.899085]
[1680387860056,10.0,21.169,21.159,18.899085]
[1680387860546,10.0,21.169,21.155,10.0]
[1680387861853,11.70410897,21.168,21.155,10.0]
[1680387863453,11.70410897,21.168,21.157,10.0]
[1680387863836,11.70410897,21.168,21.158,17.0]
[1680387866150,11.70410897,21.168,21.158,5.19529701]
[1680387866330,11.70410897,21.168,21.157,10.0]
[1680387868356,11.70410897,21.168,21.158,17.0]
[1680387868553,11.70410897,21.168,21.155,10.0]
[1680387868735,10.0,21.166,21.155,10.0]
[1680387870663,11.70410897,21.165,21.155,10.0]
[1680387871048,11.70410897,21.165,21.154,10.0]
[1680387871262,11.70410897,21.165,21.155,20.0]
[1680387874657,11.70410897,21.165,21.157,10.0]
[1680387875755,11.70410897,21.165,21.158,17.0]
[1680387876647,11.70410897,21.168,21.158,17.0]
[1680387888363,11.70410897,21.168,21.159,10.0]
[1680387888557,11.70410897,21.168,21.161,10.0]
[1680387888948,11.70410897,21.168,21.162,17.0]
[1680387891557,11.70410897,21.168,21.163,30.0]
[1680387891756,11.70410897,21.176,21.165,10.0]
[1680387891956,11.70410897,21.176,21.167,10.0]
[1680387892358,11.70410897,21.176,21.168,17.0]
[1680387894767,11.70410897,21.178,21.168,17.0]
[1680387900270,11.70410897,21.178,21.169,10.0]
[1680387900462,11.70410897,21.178,21.17,17.0]
[1680387908190,11.70410897,21.178,21.169,10.0]
[1680387909681,11.70410897,21.178,21.167,10.0]
[1680387909865,11.70410897,21.178,21.168,17.0]
[1680387914079,11.70410897,21.178,21.167,10.0]
[1680387918582,11.70410897,21.178,21.165,10.0]
[1680387918880,10.0,21.176,21.165,10.0]
[1680387919079,10.0,21.176,21.164,10.0]
[1680387919281,10.0,21.176,21.166,10.0]
[1680387920485,10.0,21.176,21.164,10.0]
[1680387920694,10.0,21.176,21.165,20.0]
[1680387921887,11.70410897,21.175,21.165,20.0]
[1680387923393,11.70410897,21.175,21.167,10.0]
[1680387924584,11.70410897,21.175,21.165,20.0]
[1680387938108,11.70410897,21.175,21.166,27.0]
[1680387939905,11.70410897,21.179,21.166,27.0]
[1680387946192,11.70410897,21.179,21.166,10.0]
[1680387946394,10.0,21.177,21.166,10.0]
[1680387946911,11.70410897,21.179,21.166,10.0]
[1680387947708,11.70410897,21.179,21.168,10.0]
[1680387951613,11.70410897,21.179,21.17,10.0]
[1680387951915,11.70410897,21.179,21.171,17.0]
[1680387954010,11.70410897,21.179,21.17,10.0]
[1680387955905,11.70410897,21.179,21.172,10.0]
[1680387956607,0.15080897,21.179,21.174,10.0]
[1680387956805,479.68740897,21.18,21.175,37.0]
[1680387958194,479.68740897,21.18,21.175,20.0]
[1680387958612,479.68740897,21.18,21.173,20.0]
[1680387958799,479.68740897,21.18,21.171,20.0]
[1680387959497,506.24740897,21.18,21.166,10.0]
[1680387959701,10.0,21.179,21.166,10.0]
[1680387961910,506.24740897,21.18,21.166,10.0]
[1680387962108,479.68740897,21.18,21.168,10.0]
[1680387962311,479.68740897,21.18,21.17,10.0]
[1680387962516,479.68740897,21.18,21.171,17.0]
[1680387966424,479.68740897,21.18,21.17,10.0]
[1680387966722,479.68740897,21.18,21.171,17.0]
[1680387979823,479.68740897,21.18,21.169,17.0]
[1680387982520,479.68740897,21.18,21.168,10.0]
[1680387983838,479.68740897,21.18,21.169,17.0]
[1680387985437,479.68740897,21.18,21.168,10.0]
[1680387985932,479.68740897,21.18,21.17,10.0]
[1680387986130,1.95312894,21.179,21.171,17.0]
[1680387991345,1.95312894,21.179,21.168,10.0]
[1680387991552,10.0,21.178,21.166,10.0]
[1680387992141,1.95312894,21.177,21.166,10.0]
[1680387992938,1.95312894,21.177,21.167,17.0]
[1680388000250,1.95312894,21.177,21.166,10.0]
[1680388000740,1.95312894,21.177,21.168,10.0]
[1680388001242,1.95312894,21.177,21.169,17.0]
[1680388007249,11.95312894,21.179,21.169,17.0]
[1680388008655,1.95312894,21.179,21.169,17.0]
[1680388012360,1.95312894,21.179,21.17,10.0]
[1680388012662,1.95312894,21.179,21.172,10.0]
[1680388012843,1.95312894,21.179,21.173,17.0]
[1680388013153,1.95312894,21.179,21.175,10.0]
[1680388013459,1.95312894,21.179,21.173,17.0]
[1680388013660,1.95312894,21.179,21.174,20.0]
[1680388013862,1.95312894,21.179,21.175,17.0]
[1680388022974,1.95312894,21.179,21.174,20.0]
[1680388023271,1.95312894,21.179,21.173,20.0]
[1680388024370,1.95312894,21.179,21.174,10.0]
[1680388024665,1.95312894,21.179,21.175,37.0]
[1680388030176,1.95312894,21.179,21.176,10.0]
[1680388030483,1.95312894,21.179,21.177,17.0]
[1680388032272,1.95312894,21.179,21.178,10.0]
[1680388032477,1.95312894,21.179,21.178,27.0]
[1680388032772,440.50290897,21.18,21.179,10.0]
[1680388032956,376.01980897,21.18,21.179,47.0]
[1680388033464,376.01980897,21.18,21.179,10.0]
[1680388034976,376.01980897,21.18,21.179,27.0]
[1680388035479,376.01980897,21.18,21.179,10.0]
[1680388036883,376.01980897,21.18,21.179,27.0]
[1680388038282,376.01980897,21.18,21.179,17.0]
[1680388038479,376.01980897,21.18,21.178,10.0]
[1680388038682,376.01980897,21.18,21.179,17.0]
[1680388042263,376.01980897,21.18,21.177,17.0]
[1680388045889,376.01980897,21.18,21.174,10.0]
[1680388046074,376.01980897,21.18,21.176,10.0]
[1680388047176,376.01980897,21.18,21.177,17.0]
[1680388052087,376.01980897,21.18,21.177,17.0]
[1680388054988,375.51980897,21.18,21.177,17.0]
[1680388055185,375.51980897,21.18,21.178,10.0]
[1680388055391,375.51980897,21.18,21.179,37.0]
[1680388055992,340.68090897,21.18,21.179,37.0]
[1680388056292,316.61970897,21.18,21.179,37.0]
[1680388059591,316.61970897,21.18,21.179,67.0]
[1680388065494,316.61970897,21.18,21.179,50.0]
[1680388067902,316.61970897,21.18,21.179,67.0]
[1680388069497,316.61970897,21.18,21.179,30.0]
[1680388069889,316.61970897,21.18,21.177,10.0]
[1680388070695,316.61970897,21.18,21.178,17.0]
[1680388071483,316.61970897,21.18,21.179,20.0]
[1680388071800,316.61970897,21.18,21.179,37.0]
[1680388072299,316.61970897,21.18,21.179,67.0]
[1680388078008,316.61970897,21.18,21.176,10.0]
[1680388078213,316.61970897,21.18,21.177,17.0]
[1680388082916,316.61970897,21.18,21.178,30.0]
[1680388083123,314.11970897,21.18,21.179,50.608]
[1680388083326,314.11970897,21.18,21.179,129.60409389]
[1680388084122,314.11970897,21.18,21.179,159.60409389]
[1680388085418,314.11970897,21.18,21.179,142.60409389]
[1680388086518,314.11970897,21.18,21.179,135.49635297]
[1680388086722,314.11970897,21.18,21.179,152.49635297]
[1680388097530,311.61970897,21.18,21.179,152.49635297]
[1680388099417,311.61970897,21.18,21.179,219.86833505]
[1680388100222,300.61970897,21.18,21.179,262.52693923]
[1680388102615,300.11970897,21.18,21.179,262.52693923]
[1680388105740,300.11970897,21.18,21.179,245.52693923]
[1680388107235,300.11970897,21.18,21.179,262.52693923]
[1680388112441,300.11970897,21.18,21.179,219.86833505]
[1680388117743,297.61970897,21.18,21.179,219.86833505]
[1680388122642,297.61970897,21.18,21.179,209.86833505]
[1680388129866,297.61970897,21.18,21.179,179.86833505]
[1680388130965,297.61970897,21.18,21.179,209.86833505]
[1680388132151,286.61970897,21.18,21.179,209.86833505]
[1680388133263,286.61970897,21.18,21.179,157.97998208]
[1680388133653,286.61970897,21.18,21.179,200.64288183]
[1680388134962,286.61970897,21.18,21.179,123.37864067]
[1680388135165,286.61970897,21.18,21.179,116.27089975]
[1680388136566,286.61970897,21.18,21.179,133.27089975]
[1680388146483,286.61970897,21.18,21.179,109.66289975]
[1680388148576,286.61970897,21.18,21.179,30.0]
[1680388148985,286.61970897,21.18,21.174,70.88924186]
[1680388149164,286.61970897,21.18,21.175,50.0]
[1680388150368,286.61970897,21.18,21.176,17.0]
[1680388153084,286.61970897,21.18,21.175,50.0]
[1680388154384,286.61970897,21.18,21.176,17.0]
[1680388163982,286.61970897,21.18,21.175,50.0]
[1680388165297,286.61970897,21.18,21.176,17.0]
[1680388167890,286.61970897,21.18,21.175,20.0]
[1680388168185,286.61970897,21.18,21.172,20.0]
[1680388168369,286.61970897,21.18,21.173,30.0]
[1680388168574,286.61970897,21.18,21.174,20.0]
[1680388174683,286.61970897,21.18,21.171,20.0]
[1680388174885,286.61970897,21.18,21.172,47.0]
[1680388175095,286.61970897,21.18,21.173,20.0]
[1680388175296,286.61970897,21.18,21.174,17.0]
[1680388175599,286.61970897,21.18,21.175,20.0]
[1680388176901,286.61970897,21.18,21.172,30.0]
[1680388177107,286.61970897,21.18,21.165,61.5904553]
[1680388177399,10.0,21.179,21.167,30.0]
[1680388177599,10.0,21.179,21.168,10.0]
[1680388178291,10.0,21.179,21.169,17.0]
[1680388184699,10.0,21.179,21.168,17.0]
[1680388186698,10.0,21.179,21.167,17.0]
[1680388196999,10.0,21.179,21.166,17.0]
[1680388201506,10.0,21.177,21.158,18.898129]
[1680388201812,10.0,21.169,21.158,18.898129]
[1680388202198,17.10774092,21.177,21.159,10.0]
[1680388202522,21.26,21.17,21.159,10.0]
[1680388204414,21.26,21.17,21.155,10.0]
[1680388204632,10.0,21.169,21.155,10.0]
[1680388205805,10.0,21.169,21.157,10.0]
[1680388206008,10.0,21.169,21.158,17.0]
[1680388208527,10.0,21.169,21.157,10.0]
[1680388209220,10.0,21.169,21.155,10.0]
[1680388209426,10.0,21.167,21.154,10.0]
[1680388209622,10.0,21.167,21.155,20.0]
[1680388209819,10.0,21.165,21.155,20.0]
[1680388210614,17.0,21.164,21.155,20.0]
[1680388211930,10.0,21.165,21.155,20.0]
[1680388212514,10.0,21.165,21.153,10.0]
[1680388212715,10.0,21.165,21.154,20.0]
[1680388213612,17.0,21.164,21.154,20.0]
[1680388215116,26.53,21.16,21.15,10.0]
[1680388219538,26.53,21.16,21.149,18.904665]
[1680388220224,26.53,21.16,21.15,10.0]
[1680388223143,26.53,21.16,21.149,18.904665]
[1680388224955,10.0,21.159,21.149,18.904665]
[1680388225137,10.0,21.159,21.146,10.0]
[1680388229857,10.0,21.157,21.146,10.0]
[1680388230045,17.0,21.156,21.146,10.0]
[1680388230563,20.0,21.155,21.145,10.0]
[1680388231951,17.0,21.154,21.145,10.0]
[1680388232141,20.0,21.155,21.145,10.0]
[1680388232348,10.0,21.153,21.142,26.22840534]
[1680388233161,10.0,21.153,21.139,18.914554]
[1680388233359,10.0,21.153,21.14,10.0]
[1680388242057,10.0,21.149,21.134,10.0]
[1680388242369,17.0,21.148,21.134,10.0]
[1680388244059,17.0,21.149,21.134,10.0]
[1680388244468,26.6,21.15,21.134,10.0]
[1680388244768,124.061,21.153,21.134,10.0]
[1680388244968,10.0,21.151,21.134,10.0]
[1680388245369,26.6,21.15,21.134,10.0]
[1680388245571,17.0,21.149,21.134,10.0]
[1680388245962,26.6,21.15,21.134,10.0]
[1680388248967,10.0,21.149,21.134,10.0]
[1680388251176,26.6,21.15,21.134,10.0]
[1680388255680,26.6,21.15,21.134,33.657]
[1680388255868,26.6,21.15,21.139,10.0]
[1680388256985,10.0,21.151,21.139,10.0]
[1680388257361,10.0,21.152,21.141,10.0]
[1680388257968,114.061,21.153,21.141,10.0]
[1680388258181,114.061,21.153,21.143,10.0]
[1680388260583,114.061,21.153,21.144,20.0]
[1680388260774,114.061,21.153,21.144,19.5]
[1680388266787,10.0,21.157,21.145,17.0]
[1680388266974,36.53,21.16,21.146,10.0]
[1680388267175,26.53,21.16,21.148,10.0]
[1680388267371,7.10774092,21.162,21.149,17.0]
[1680388267584,116.9849,21.163,21.149,17.0]
[1680388268185,116.9849,21.163,21.148,10.0]
[1680388268483,23.638,21.153,21.129,10.0]
[1680388268677,53.04,21.15,21.129,10.0]
[1680388268866,10.0,21.149,21.129,10.0]
[1680388269065,30.0,21.149,21.129,10.0]
[1680388269272,17.0,21.148,21.129,10.0]
[1680388269474,30.0,21.147,21.129,10.0]
[1680388269688,10.0,21.145,21.129,10.0]
[1680388269988,10.0,21.143,21.128,36.24578501]
[1680388270183,10.0,21.143,21.129,10.0]
[1680388270582,10.0,21.143,21.129,8.5]
[1680388270889,10.0,21.143,21.131,10.0]
[1680388271087,10.0,21.143,21.133,10.0]
[1680388273173,10.0,21.143,21.131,10.0]
[1680388273378,10.0,21.141,21.129,8.5]
[1680388275794,117.7412,21.142,21.131,10.0]
[1680388279187,117.7412,21.142,21.132,17.0]
[1680388279690,36.51,21.15,21.133,30.0]
[1680388279887,150.8981,21.15,21.134,27.0]
[1680388280079,150.8981,21.15,21.135,20.0]
[1680388280280,150.8981,21.15,21.136,10.0]
[1680388281885,150.8981,21.15,21.135,20.0]
[1680388283199,150.8981,21.15,21.136,10.0]
[1680388288887,150.8981,21.15,21.138,10.0]
[1680388296614,114.3881,21.15,21.14,10.0]
[1680388302804,114.3881,21.15,21.141,17.0]
[1680388308617,109.657,21.153,21.141,17.0]
[1680388322522,109.657,21.153,21.143,10.0]
[1680388322835,109.657,21.153,21.144,20.0]
[1680388324444,113.2846,21.157,21.145,17.0]
[1680388324733,18.921913,21.16,21.146,10.0]
[1680388324912,18.921913,21.16,21.147,17.0]
[1680388325113,18.921913,21.16,21.148,10.0]
[1680388325312,18.921913,21.16,21.15,10.0]
[1680388325523,18.921913,21.16,21.151,17.0]
[1680388325825,18.921913,21.16,21.152,10.0]
[1680388326018,18.921913,21.16,21.153,17.0]
[1680388328027,18.921913,21.16,21.152,10.0]
[1680388328431,18.921913,21.16,21.153,17.0]
[1680388330029,18.921913,21.16,21.152,10.0]
[1680388331221,18.921913,21.16,21.15,10.0]
[1680388332429,10.0,21.163,21.151,17.0]
[1680388338429,10.0,21.163,21.15,10.0]
[1680388339928,10.0,21.163,21.152,10.0]
[1680388341529,10.0,21.168,21.152,10.0]
[1680388343018,10.0,21.168,21.153,20.0]
[1680388346424,10.0,21.168,21.152,10.0]
[1680388346631,10.0,21.168,21.153,17.0]
[1680388348531,10.0,21.168,21.155,10.0]
[1680388348733,10.0,21.168,21.156,17.0]
[1680388350923,10.0,21.168,21.154,20.0]
[1680388351125,10.0,21.168,21.154,10.0]
[1680388351421,10.0,21.168,21.155,20.0]
[1680388352444,10.0,21.168,21.153,20.0]
[1680388360344,17.0,21.163,21.153,20.0]
[1680388360649,10.0,21.163,21.153,20.0]
[1680388361548,10.0,21.168,21.153,20.0]
[1680388375946,10.0,21.168,21.155,10.0]
[1680388377450,10.0,21.168,21.157,10.0]
[1680388381668,10.0,21.168,21.155,10.0]
[1680388381850,10.0,21.168,21.156,17.0]
[1680388382964,10.0,21.168,21.155,10.0]
[1680388383156,10.0,21.168,21.153,20.0]
[1680388390347,10.0,21.163,21.153,20.0]
[1680388394572,108.2944,21.169,21.155,23.634]
[1680388394769,108.2944,21.169,21.156,47.0]
[1680388394959,108.2944,21.169,21.16,10.0]
[1680388395467,108.2944,21.169,21.161,20.0]
[1680388397458,10.0,21.174,21.161,20.0]
[1680388397659,10.0,21.174,21.162,10.0]
[1680388398057,10.0,21.174,21.163,20.0]
[1680388407580,10.0,21.172,21.163,20.0]
[1680388409885,10.0,21.174,21.163,20.0]